fUST/lending_fUST_20251112
["ID","MTS","AMOUNT","RATE_DAILY","PERIOD"]
[393660525,1762890652379,-947.82,0.00056438,3]
[393660526,1762890652389,-905.83,0.00056438,120]
[393660527,1762890652398,-500.0,0.00056438,120]
[393660528,1762890652408,-13395.93,0.00056438,120]
[393660529,1762890652418,-500.0,0.00056438,120]
[393660530,1762890652428,-541.38,0.00056438,120]
[393660531,1762890652438,-658.51,0.00056438,30]
[393660532,1762890652447,-500.0,0.00056438,2]
[393660533,1762890652457,-779.48,0.00056438,2]
[393660534,1762890652470,-357.01646553,0.000566,120]
[393660535,1762890652479,-151.0,0.000567,120]
[393660536,1762890652488,-1000.0,0.00056712,2]
[393660537,1762890652502,-1000.0,0.00056712,2]
[393660538,1762890652513,-274.23986023,0.00056712,120]
[393660539,1762890652522,-2356.04,0.00056712,30]
[393660540,1762890652532,-528.2,0.00056712,2]
[393660541,1762890652544,-728.62,0.00056712,2]
[393660542,1762890652553,-500.0,0.00056712,2]
[393660543,1762890652562,-947.82,0.00056712,3]
[393660544,1762890652572,-905.83,0.00056712,120]
[393660545,1762890652581,-500.0,0.00056712,120]
[393660546,1762890652591,-13395.93,0.00056712,120]
[393660547,1762890652601,-333.23252896,0.00056712,120]
[393660548,1762890652610,-541.38,0.00056712,120]
[393660549,1762890652621,-658.51,0.00056712,30]
[393660550,1762890652631,-500.0,0.00056712,2]
[393660551,1762890652641,-779.48,0.00056712,2]
[393660552,1762890652652,-2000.0,0.000569,120]
[393660553,1762890652662,-1000.0,0.00056986,2]
[393660554,1762890652672,-1000.0,0.00056986,2]
[393660555,1762890652683,-2356.04,0.00056986,30]
[393660556,1762890652695,-528.2,0.00056986,2]
[393660557,1762890652708,-728.62,0.00056986,2]
[393660558,1762890652719,-500.0,0.00056986,2]
[393660559,1762890652731,-947.82,0.00056986,3]
[393660560,1762890652742,-905.83,0.00056986,120]
[393660561,1762890652752,-500.0,0.00056986,120]
[393660562,1762890652762,-13395.93,0.00056986,120]
[393660563,1762890652772,-541.38,0.00056986,120]
[393660564,1762890652784,-658.51,0.00056986,30]
[393660565,1762890652796,-500.0,0.00056986,2]
[393660566,1762890652805,-779.48,0.00056986,2]
[393660567,1762890652815,-2000.0,0.00057,120]
[393660568,1762890652825,-1898.51636287,0.00057,120]
[393660569,1762890652836,-150.0,0.00057,15]
[393660570,1762890652846,-170.0,0.00057244,120]
[393660571,1762890652856,-1000.0,0.0005726,2]
[393660572,1762890652953,-1000.0,0.0005726,2]
[393660573,1762890652965,-2356.04,0.0005726,30]
[393660574,1762890652977,-528.2,0.0005726,2]
[393660575,1762890652988,-728.62,0.0005726,2]
[393660576,1762890652999,-500.0,0.0005726,2]
[393660577,1762890653011,-947.82,0.0005726,3]
[393660578,1762890653022,-905.83,0.0005726,120]
[393660579,1762890653033,-500.0,0.0005726,120]
[393660580,1762890653046,-13395.93,0.0005726,120]
[393660581,1762890653056,-541.38,0.0005726,120]
[393660582,1762890653067,-658.51,0.0005726,30]
[393660583,1762890653078,-500.0,0.0005726,2]
[393660584,1762890653092,-779.48,0.0005726,2]
[393660585,1762890653103,-103000.0,0.00057486,120]
[393660586,1762890653114,-1000.0,0.00057534,2]
[393660587,1762890653125,-1000.0,0.00057534,2]
[393660588,1762890653136,-2356.04,0.00057534,30]
[393660589,1762890653147,-528.2,0.00057534,2]
[393660590,1762890653158,-728.62,0.00057534,2]
[393660591,1762890653168,-500.0,0.00057534,2]
[393660592,1762890653180,-947.82,0.00057534,3]
[393660593,1762890653191,-905.83,0.00057534,120]
[393660594,1762890653202,-500.0,0.00057534,120]
[393660595,1762890653213,-13395.93,0.00057534,120]
[393660596,1762890653224,-541.38,0.00057534,120]
[393660597,1762890653235,-658.51,0.00057534,30]
[393660598,1762890653246,-500.0,0.00057534,2]
[393660599,1762890653259,-779.48,0.00057534,2]
[393660600,1762890653271,-352.73195319,0.00057548,15]
[393660601,1762890653281,-652.28284489,0.00057574,28]
[393660602,1762890653292,-209.0,0.000577,120]
[393660603,1762890653303,-1000.0,0.00057808,2]
[393660604,1762890653314,-1000.0,0.00057808,2]
[393660605,1762890653324,-2356.04,0.00057808,30]
[393660606,1762890653335,-528.2,0.00057808,2]
[393660607,1762890653345,-728.62,0.00057808,2]
[393660608,1762890653355,-500.0,0.00057808,2]
[393660609,1762890653366,-947.82,0.00057808,3]
[393660610,1762890653377,-905.83,0.00057808,120]
[393660611,1762890653388,-500.0,0.00057808,120]
[393660612,1762890653398,-13395.93,0.00057808,120]
[393660613,1762890653409,-541.38,0.00057808,120]
[393660614,1762890653422,-658.51,0.00057808,30]
[393660615,1762890653433,-351.36798241,0.00057808,2]
[393660616,1762890653444,-779.48,0.00057808,2]
[393660617,1762890653458,-548.0782645,0.00057838,120]
[393660618,1762890653472,-35772.13074659,0.00058,30]
[393660619,1762890653490,-167.1811078,0.00058,60]
[393660620,1762890653503,-200.0,0.00058,120]
[393660621,1762890653514,-1000.0,0.00058,120]
[393660622,1762890653524,-151.0,0.00058,120]
[393660623,1762890653537,-1000.0,0.00058082,2]
[393660624,1762890653547,-1000.0,0.00058082,2]
[393660625,1762890653557,-2356.04,0.00058082,30]
[393660626,1762890653567,-528.2,0.00058082,2]
[393660627,1762890653577,-728.62,0.00058082,2]
[393660628,1762890653587,-500.0,0.00058082,2]
[393660629,1762890653604,-947.82,0.00058082,3]
[393660630,1762890653620,-905.83,0.00058082,120]
[393660631,1762890653631,-500.0,0.00058082,120]
[393660632,1762890653643,-13395.93,0.00058082,120]
[393660633,1762890653654,-541.38,0.00058082,120]
[393660634,1762890653665,-658.51,0.00058082,30]
[393660635,1762890653677,-779.48,0.00058082,2]
[393660636,1762890653687,-1000.0,0.00058356,2]
[393660637,1762890653698,-1000.0,0.00058356,2]
[393660638,1762890653711,-2356.04,0.00058356,30]
[393660639,1762890653721,-528.2,0.00058356,2]
[393660640,1762890653732,-728.62,0.00058356,2]
[393660641,1762890653743,-502.15931471,0.00058356,2]
[393660642,1762890653755,-947.82,0.00058356,3]
[393660643,1762890653767,-905.83,0.00058356,120]
[393660644,1762890653779,-500.0,0.00058356,120]
[393660645,1762890653790,-13395.93,0.00058356,120]
[393660646,1762890653800,-541.38,0.00058356,120]
[393660647,1762890653812,-658.51,0.00058356,30]
[393660648,1762890653823,-779.48,0.00058356,2]
[393660649,1762890653834,-1000.0,0.0005863,2]
[393660650,1762890653845,-1000.0,0.0005863,2]
[393660651,1762890653855,-2356.04,0.0005863,30]
[393660652,1762890653865,-528.2,0.0005863,2]
[393660653,1762890653876,-728.62,0.0005863,2]
[393660654,1762890653888,-947.82,0.0005863,3]
[393660655,1762890653899,-905.83,0.0005863,120]
[393660656,1762890653910,-500.0,0.0005863,120]
[393660657,1762890653923,-13395.93,0.0005863,120]
[393660658,1762890653933,-541.38,0.0005863,120]
[393660659,1762890653946,-658.51,0.0005863,30]
[393660660,1762890653956,-779.48,0.0005863,2]
[393660661,1762890653966,-3025.32571583,0.00058875,60]
[393660662,1762890653976,-2000.0,0.000589,120]
[393660663,1762890653987,-310941.35783543,0.000589,120]
[393660664,1762890653997,-1000.0,0.00058904,2]
[393660665,1762890654007,-1000.0,0.00058904,2]
[393660666,1762890654019,-2356.04,0.00058904,30]
[393660667,1762890654031,-528.2,0.00058904,2]
[393660668,1762890654043,-728.62,0.00058904,2]
[393660669,1762890654053,-947.82,0.00058904,3]
[393660670,1762890654064,-905.83,0.00058904,120]
[393660671,1762890654076,-500.0,0.00058904,120]
[393660672,1762890654089,-13395.93,0.00058904,120]
[393660673,1762890654099,-541.38,0.00058904,120]
[393660674,1762890654111,-658.51,0.00058904,30]
[393660675,1762890654122,-779.48,0.00058904,2]
[393660676,1762890654133,-2000.0,0.00059,120]
[393660677,1762890654143,-209.0,0.00059,120]
[393660678,1762890654155,-313.756515,0.0005912,2]
[393660679,1762890654166,-1000.0,0.00059178,2]
[393660680,1762890654176,-482.55840652,0.00059178,2]
[393660681,1762890654188,-2356.04,0.00059178,30]
[393660682,1762890654199,-528.2,0.00059178,2]
[393660683,1762890654211,-728.62,0.00059178,2]
[393660684,1762890654222,-947.82,0.00059178,3]
[393660685,1762890654233,-905.83,0.00059178,120]
[393660686,1762890654245,-500.0,0.00059178,120]
[393660687,1762890654256,-13395.93,0.00059178,120]
[393660688,1762890654266,-541.38,0.00059178,120]
[393660689,1762890654277,-658.51,0.00059178,30]
[393660690,1762890654287,-779.48,0.00059178,2]
[393660691,1762890654299,-151.0,0.000594,120]
[393660692,1762890654311,-1000.0,0.00059452,2]
[393660693,1762890654323,-2356.04,0.00059452,30]
[393660694,1762890654334,-528.2,0.00059452,2]
[393660695,1762890654345,-728.62,0.00059452,2]
[393660696,1762890654356,-947.82,0.00059452,3]
[393660697,1762890654368,-905.83,0.00059452,120]
[393660698,1762890654379,-500.0,0.00059452,120]
[393660699,1762890654389,-13395.93,0.00059452,120]
[393660700,1762890654400,-541.38,0.00059452,120]
[393660701,1762890654410,-658.51,0.00059452,30]
[393660702,1762890654420,-779.48,0.00059452,2]
[393660703,1762890654430,-1000.0,0.00059726,2]
[393660704,1762890654440,-2356.04,0.00059726,30]
[393660705,1762890654451,-528.2,0.00059726,2]
[393660706,1762890654464,-728.62,0.00059726,2]
[393660707,1762890654477,-947.82,0.00059726,3]
[393660708,1762890654489,-905.83,0.00059726,120]
[393660709,1762890654501,-500.0,0.00059726,120]
[393660710,1762890654512,-13395.93,0.00059726,120]
[393660711,1762890654523,-541.38,0.00059726,120]
[393660712,1762890654533,-658.51,0.00059726,30]
[393660713,1762890654545,-779.48,0.00059726,2]
[393660714,1762890654557,-10000.0,0.0005988,120]
[393660715,1762890654569,-421.17,0.00059884,30]
[393660716,1762890654580,-2226.938923,0.000599,120]
[393660717,1762890654592,-160851.44199339,0.00059999,120]
[393660719,1762890865978,215.04023652,0.00016307,2]
[393660720,1762890971747,300.0,0.000163,2]
[393660721,1762890982992,300.0,0.000163,2]
[393660722,1762890993831,300.0,0.000163,2]
[393660723,1762891004907,300.0,0.000163,2]
[393660724,1762891025558,300.0,0.000163,2]
[393660725,1762891029998,300.0,0.000163,2]
[393660726,1762891035779,300.0,0.000163,2]
[393660727,1762891041301,300.0,0.000163,2]
[393660728,1762891046856,300.0,0.000163,2]
[393660729,1762891051228,300.0,0.000163,2]
[393660730,1762891059096,300.0,0.000163,2]
[393660731,1762891195097,300.0,0.000163,2]
[393660732,1762891204267,876.22433785,0.00016307,2]
[393660733,1762891206230,300.0,0.000163,2]
[393660734,1762891216693,300.0,0.000163,2]
[393660735,1762891226891,300.0,0.000163,2]
[393660736,1762891234936,200.0,0.000282,120]
[393660737,1762891235239,249.58567,0.000298,120]
[393660738,1762891237143,300.0,0.000163,2]
[393660739,1762891248961,300.0,0.000163,2]
[393660740,1762891253628,300.0,0.000163,2]
[393660741,1762891259245,300.0,0.000163,2]
[393660742,1762891264125,300.0,0.000163,2]
[393660743,1762891269617,300.0,0.000163,2]
[393660744,1762891274896,300.0,0.000163,2]
[393660745,1762891279807,300.0,0.000163,2]
[393660746,1762891285867,300.0,0.000163,2]
[393660747,1762891290562,300.0,0.000163,2]
[393660748,1762891296650,300.0,0.000163,2]
[393660749,1762891300827,300.0,0.000163,2]
[393660750,1762891308912,300.0,0.000163,2]
[393660751,1762891311556,300.0,0.000163,2]
[393660752,1762891313224,300.0,0.000163,2]
[393660753,1762891319641,300.0,0.000163,2]
[393660754,1762891321942,300.0,0.000163,2]
[393660755,1762891323965,300.0,0.000163,2]
[393660756,1762891330176,906.4778728,0.00032877,120]
[393660759,1762891680857,232.84,0.00015485,2]
[393660764,1762891822659,277.21903148,0.00017404,2]
[393660794,1762891832469,-454.61144312,0.00018395,2]
[393660796,1762891832479,-271.15008787,0.00018495,2]
[393660801,1762891832523,-302.67325738,0.00018495,2]
[393660804,1762891832535,-302.4009926,0.00018495,2]
[393660806,1762891832544,-897.0,0.00018495,2]
[393660808,1762891832554,-150.0,0.00018497,2]
[393660810,1762891832563,-500.0,0.000185,2]
[393660812,1762891832572,-750.5990074,0.00019061,2]
[393660814,1762891832583,-2163.0780624,0.00019061,2]
[393660815,1762891832593,-586.9219376,0.00019472,2]
[393660867,1762891838550,-95.55405838,0.00019472,2]
[393660869,1762891838560,-277.21903148,0.00019504,2]
[393660871,1762891838569,-459.55394791,0.0001957,2]
[393660873,1762891838579,-300.0,0.00019571,2]
[393660875,1762891838591,-300.0,0.00019571,2]
[393660877,1762891838602,-300.0,0.00019571,2]
[393660879,1762891838612,-1200.0,0.00019571,2]
[393660880,1762891838622,-50000.0,0.00019572,2]
[393660882,1762891838632,-400.00000003,0.00019572,2]
[393660884,1762891838643,-500.0,0.00019572,2]
[393660886,1762891838653,-500.0,0.00019572,2]
[393660888,1762891838663,-500.0,0.00019572,2]
[393660890,1762891838673,-500.0,0.00019572,2]
[393660892,1762891838683,-614.22396037,0.00019572,2]
[393660894,1762891838693,-500.0,0.00019572,2]
[393660895,1762891838704,-267.7224914,0.00019572,2]
[393660897,1762891838713,-500.0,0.00019572,2]
[393660899,1762891838723,-500.0,0.00019572,2]
[393660901,1762891838733,-500.0,0.00019572,2]
[393660903,1762891838746,-500.0,0.00019572,2]
[393660905,1762891838757,-500.0,0.00019572,2]
[393660907,1762891838767,-286.54811086,0.00019572,2]
[393660909,1762891838776,-500.0,0.00019572,2]
[393660912,1762891838787,-500.0,0.00019572,2]
[393660914,1762891838797,-500.0,0.00019572,2]
[393660915,1762891838807,-296.91673322,0.00019572,2]
[393660917,1762891838816,-532.54971218,0.00019572,2]
[393660919,1762891838826,-500.0,0.00019572,2]
[393660921,1762891838836,-500.0,0.00019572,2]
[393660923,1762891838853,-500.0,0.00019572,2]
[393660925,1762891838863,-500.0,0.00019572,2]
[393660927,1762891838873,-500.0,0.00019572,2]
[393660929,1762891838883,-500.0,0.00019572,2]
[393660945,1762891839036,-500.0,0.00019572,2]
[393660947,1762891839047,-500.0,0.00019572,2]
[393660949,1762891839058,-500.0,0.00019572,2]
[393660951,1762891839069,-500.0,0.00019572,2]
[393660953,1762891839078,-500.0,0.00019572,2]
[393660955,1762891839088,-500.0,0.00019572,2]
[393660957,1762891839099,-500.0,0.00019572,2]
[393660959,1762891839109,-500.0,0.00019572,2]
[393660962,1762891839119,-500.0,0.00019572,2]
[393660964,1762891839129,-500.0,0.00019572,2]
[393660966,1762891839139,-500.0,0.00019572,2]
[393660968,1762891839150,-500.0,0.00019572,2]
[393660970,1762891839160,-500.0,0.00019572,2]
[393660972,1762891839170,-500.0,0.00019572,2]
[393660973,1762891839179,-500.0,0.00019572,2]
[393660975,1762891839190,-500.0,0.00019572,2]
[393660978,1762891839201,-285.23511307,0.00019572,2]
[393660979,1762891839210,-205.29461626,0.00019572,2]
[393660981,1762891839219,-500.0,0.00019572,2]
[393660983,1762891839230,-500.0,0.00019572,2]
[393660985,1762891839240,-524.31070781,0.00019572,2]
[393660987,1762891839251,-501.23251513,0.00019572,2]
[393660989,1762891839261,-502.06167675,0.00019572,2]
[393660991,1762891839270,-500.0,0.00019572,2]
[393660993,1762891839280,-500.0,0.00019572,2]
[393660995,1762891839289,-500.0,0.00019572,2]
[393660997,1762891839298,-500.0,0.00019572,2]
[393660998,1762891839307,-500.0,0.00019572,2]
[393660999,1762891839316,-500.0,0.00019572,2]
[393661000,1762891839325,-500.0,0.00019572,2]
[393661001,1762891839334,-500.0,0.00019572,2]
[393661002,1762891839343,-500.0,0.00019572,2]
[393661003,1762891839354,-500.0,0.00019572,2]
[393661004,1762891839363,-500.0,0.00019572,2]
[393661005,1762891839372,-500.0,0.00019572,2]
[393661006,1762891839381,-522.23824505,0.00019572,2]
[393661007,1762891839390,-500.0,0.00019572,2]
[393661008,1762891839399,-522.23824505,0.00019572,2]
[393661009,1762891839411,-500.0,0.00019572,2]
[393661010,1762891839420,-522.23824505,0.00019572,2]
[393661011,1762891839429,-500.0,0.00019572,2]
[393661012,1762891839439,-522.23824505,0.00019572,2]
[393661013,1762891839449,-500.0,0.00019572,2]
[393661014,1762891839458,-522.23824505,0.00019572,2]
[393661015,1762891839467,-522.23824505,0.00019572,2]
[393661016,1762891839477,-522.23824505,0.00019572,2]
[393661017,1762891839486,-522.23824505,0.00019572,2]
[393661018,1762891839495,-522.23824505,0.00019572,2]
[393661020,1762891839504,-522.23824505,0.00019572,2]
[393661022,1762891839516,-522.23824505,0.00019572,2]
[393661024,1762891839526,-522.23824505,0.00019572,2]
[393661026,1762891839536,-522.23824505,0.00019572,2]
[393661028,1762891839546,-522.23824505,0.00019572,2]
[393661030,1762891839556,-522.23824505,0.00019572,2]
[393661032,1762891839566,-522.23824505,0.00019572,2]
[393661034,1762891839576,-522.23824505,0.00019572,2]
[393661036,1762891839585,-522.23824505,0.00019572,2]
[393661038,1762891839594,-522.23824505,0.00019572,2]
[393661040,1762891839604,-522.23824505,0.00019572,2]
[393661042,1762891839613,-522.23824505,0.00019572,2]
[393661044,1762891839623,-522.23824505,0.00019572,2]
[393661046,1762891839632,-522.23824505,0.00019572,2]
[393661048,1762891839641,-522.23824505,0.00019572,2]
[393661050,1762891839651,-522.23824505,0.00019572,2]
[393661052,1762891839661,-522.23824505,0.00019572,2]
[393661054,1762891839670,-522.23824505,0.00019572,2]
[393661055,1762891839679,-522.23824505,0.00019572,2]
[393661057,1762891839689,-522.23824505,0.00019572,2]
[393661059,1762891839699,-522.23824505,0.00019572,2]
[393661061,1762891839710,-522.23824505,0.00019572,2]
[393661063,1762891839719,-522.23824505,0.00019572,2]
[393661065,1762891839729,-522.23824505,0.00019572,2]
[393661067,1762891839739,-522.23824505,0.00019572,2]
[393661070,1762891839749,-522.23824505,0.00019572,2]
[393661071,1762891839759,-522.23824505,0.00019572,2]
[393661073,1762891839769,-522.23824505,0.00019572,2]
[393661076,1762891839779,-522.23824505,0.00019572,2]
[393661078,1762891839788,-522.23824505,0.00019572,2]
[393661080,1762891839798,-522.23824505,0.00019572,2]
[393661082,1762891839808,-522.23824505,0.00019572,2]
[393661084,1762891839818,-522.23824505,0.00019572,2]
[393661086,1762891839827,-522.23824505,0.00019572,2]
[393661087,1762891839837,-522.23824505,0.00019572,2]
[393661090,1762891839850,-522.23824505,0.00019572,2]
[393661092,1762891839860,-522.23824505,0.00019572,2]
[393661093,1762891839870,-522.23824505,0.00019572,2]
[393661095,1762891839879,-522.23824505,0.00019572,2]
[393661097,1762891839888,-522.23824505,0.00019572,2]
[393661099,1762891839897,-522.23824505,0.00019572,2]
[393661101,1762891839907,-522.23824505,0.00019572,2]
[393661103,1762891839916,-522.23824505,0.00019572,2]
[393661105,1762891839928,-522.23824505,0.00019572,2]
[393661107,1762891839938,-522.23824505,0.00019572,2]
[393661109,1762891839947,-522.23824505,0.00019572,2]
[393661111,1762891839957,-522.23824505,0.00019572,2]
[393661113,1762891839967,-522.23824505,0.00019572,2]
[393661115,1762891839976,-671.5056872,0.00019572,2]
[393661117,1762891839985,-671.5056872,0.00019572,2]
[393661119,1762891839995,-671.5056872,0.00019572,2]
[393661121,1762891840005,-671.5056872,0.00019572,2]
[393661123,1762891840014,-500.0,0.00019572,2]
[393661125,1762891840023,-500.0,0.00019572,2]
[393661127,1762891840032,-500.0,0.00019572,2]
[393661129,1762891840042,-563.46598295,0.00019572,2]
[393661131,1762891840051,-500.0,0.00019572,2]
[393661133,1762891840061,-1200.0,0.00019572,2]
[393661135,1762891840070,-218.18589099,0.00019573,2]
[393661137,1762891840080,-500.0,0.00019573,2]
[393661139,1762891840089,-500.0,0.00019573,2]
[393661141,1762891840099,-621.68239698,0.00019573,2]
[393661143,1762891840108,-500.0,0.00019573,2]
[393661145,1762891840118,-218.61500666,0.00019573,2]
[393661146,1762891840127,-500.0,0.00019573,2]
[393661148,1762891840136,-563.28221508,0.00019573,2]
[393661150,1762891840146,-230.95761732,0.00019573,2]
[393661152,1762891840156,-505.76688572,0.00019573,2]
[393661155,1762891840165,-500.0,0.00019573,2]
[393661157,1762891840175,-503.30068781,0.00019573,2]
[393661159,1762891840186,-512.50515622,0.00019573,2]
[393661161,1762891840195,-500.0,0.00019573,2]
[393661163,1762891840204,-500.0,0.00019573,2]
[393661165,1762891840214,-500.0,0.00019573,2]
[393661167,1762891840223,-500.0,0.00019573,2]
[393661169,1762891840232,-500.0,0.00019573,2]
[393661171,1762891840245,-500.0,0.00019573,2]
[393661173,1762891840256,-501.37146483,0.00019573,2]
[393661175,1762891840275,-170.43458111,0.00019573,2]
[393661177,1762891840286,-500.0,0.00019573,2]
[393661179,1762891840296,-500.51404501,0.00019573,2]
[393661181,1762891840305,-500.0,0.00019573,2]
[393661183,1762891840314,-577.52082055,0.00019573,2]
[393661185,1762891840324,-500.0,0.00019573,2]
[393661187,1762891840335,-500.0,0.00019573,2]
[393661190,1762891840345,-500.0,0.00019573,2]
[393661191,1762891840354,-500.0,0.00019573,2]
[393661194,1762891840364,-500.0,0.00019573,2]
[393661195,1762891840374,-158.28500608,0.00019573,2]
[393661197,1762891840384,-500.0,0.00019573,2]
[393661199,1762891840394,-500.0,0.00019573,2]
[393661202,1762891840404,-500.0,0.00019573,2]
[393661204,1762891840414,-160.0,0.00019587,2]
[393661206,1762891840423,-1000.0,0.00019596,2]
[393661208,1762891840433,-500.0,0.00019598,2]
[393661210,1762891840443,-500.0,0.00019598,2]
[393661212,1762891840454,-500.0,0.00019598,2]
[393661213,1762891840463,-500.0,0.00019598,2]
[393661216,1762891840474,-500.0,0.00019599,2]
[393661217,1762891840484,-3235.06011979,0.000196,2]
[393661219,1762891840494,-19566.8389958,0.000196,2]
[393661221,1762891840503,-151.0,0.00019687,2]
[393661223,1762891840513,-151.0,0.00019687,2]
[393661225,1762891840522,-151.0,0.00019687,2]
[393661227,1762891840531,-151.0,0.00019687,2]
[393661229,1762891840541,-151.0,0.00019687,2]
[393661231,1762891840550,-151.0,0.00019687,2]
[393661233,1762891840560,-151.0,0.00019687,2]
[393661235,1762891840569,-151.0,0.00019687,2]
[393661237,1762891840579,-151.0,0.00019687,2]
[393661239,1762891840589,-151.0,0.00019687,2]
[393661241,1762891840598,-151.0,0.00019687,2]
[393661243,1762891840608,-151.0,0.00019687,2]
[393661245,1762891840618,-151.0,0.00019687,2]
[393661247,1762891840627,-151.0,0.00019687,2]
[393661249,1762891840637,-151.0,0.00019687,2]
[393661251,1762891840646,-151.0,0.00019687,2]
[393661253,1762891840655,-151.0,0.00019687,2]
[393661255,1762891840664,-151.0,0.00019687,2]
[393661256,1762891840674,-151.0,0.00019687,2]
[393661258,1762891840686,-151.0,0.00019687,2]
[393661260,1762891840696,-500.0,0.00019697,2]
[393661262,1762891840706,-500.0,0.00019698,2]
[393661264,1762891840715,-500.0,0.00019698,2]
[393661266,1762891840725,-151.0,0.00019698,2]
[393661268,1762891840734,-151.0,0.00019698,2]
[393661270,1762891840744,-151.24102086,0.00019698,2]
[393661272,1762891840753,-151.0,0.00019698,2]
[393661274,1762891840762,-151.0,0.00019698,2]
[393661276,1762891840771,-151.0,0.00019698,2]
[393661278,1762891840782,-151.0,0.00019698,2]
[393661280,1762891840791,-151.0,0.00019698,2]
[393661282,1762891840800,-151.0,0.00019698,2]
[393661284,1762891840810,-151.0,0.00019698,2]
[393661286,1762891840819,-1285.16024785,0.000197,2]
[393661288,1762891840829,-205.54214342,0.00019723,2]
[393661290,1762891840839,-236.27609465,0.00019753,2]
[393661292,1762891840850,-500.0,0.00019872,2]
[393661295,1762891840862,-7082.89337009,0.0002,2]
[393661297,1762891840871,-249.64,0.00020111,3]
[393661299,1762891840883,-748.94,0.00020111,3]
[393661301,1762891840893,-501.23509135,0.00020121,2]
[393661303,1762891840903,-1000.0,0.00020121,2]
[393661305,1762891840911,-798.11327449,0.00020121,2]
[393661307,1762891840919,-1000.0,0.00020121,2]
[393661309,1762891840929,-1000.0,0.00020121,2]
[393661311,1762891840941,-1000.0,0.00020121,2]
[393661312,1762891840951,-729.06612185,0.00020121,2]
[393661313,1762891840962,-1000.0,0.00020121,2]
[393661314,1762891840972,-1000.0,0.00020121,2]
[393661315,1762891840982,-1000.0,0.00020121,2]
[393661316,1762891840992,-1000.0,0.00020121,2]
[393661317,1762891841003,-565.85584861,0.00020121,2]
[393661318,1762891841013,-380.96289183,0.00020121,2]
[393661320,1762891841022,-1000.0,0.00020121,2]
[393661322,1762891841032,-1000.0,0.00020121,2]
[393661323,1762891841041,-1000.0,0.00020121,2]
[393661325,1762891841051,-1000.0,0.00020121,2]
[393661327,1762891841060,-1000.0,0.00020121,2]
[393661329,1762891841070,-500.0,0.00020146,2]
[393661330,1762891841079,-500.0,0.00020273,2]
[393661331,1762891841088,-500.0,0.00020274,2]
[393661332,1762891841098,-500.0,0.00020274,2]
[393661333,1762891841107,-500.0,0.0002042,2]
[393661334,1762891841118,-177.0,0.00020497,2]
[393661335,1762891841128,-500.0,0.00020547,2]
[393661336,1762891841139,-500.0,0.00020547,2]
[393661337,1762891841149,-543.32,0.00020568,2]
[393661338,1762891841159,-262.78,0.00020658,3]
[393661339,1762891841171,-499.27,0.00020658,3]
[393661340,1762891841182,-1500.0,0.00020668,2]
[393661341,1762891841192,-1500.0,0.00020668,2]
[393661342,1762891841202,-1500.0,0.00020668,2]
[393661343,1762891841213,-1500.0,0.00020668,2]
[393661344,1762891841223,-1019.49208786,0.00020668,2]
[393661345,1762891841234,-1500.0,0.00020668,2]